bitfinex/quotes_ETHUSD_20241001
["timestamp","ask_amount","ask_price","bid_price","bid_amount"]
[1727746861315,3.80193,2630.3,2630.2,0.00375604]
[1727746865776,4.57493,2630.3,2630.2,0.00375604]
[1727746866059,4.57493,2630.3,2628.9,1.17858978]
[1727746866060,3.80239,2630.0,2629.7,0.77165604]
[1727746866269,3.80239,2630.0,2629.9,0.00375604]
[1727746872549,5.353443,2630.0,2629.9,0.00375604]
[1727746872734,3.80285,2629.6,2629.2,0.78235604]
[1727746872959,0.7906,2629.6,2629.2,0.78235604]
[1727746873169,3.80286,2629.6,2629.3,0.00375604]
[1727746873880,8.39598,2629.8,2629.3,0.46234664]
[1727746874191,3.80268,2629.8,2629.3,0.46234664]
[1727746874358,7.60537,2629.8,2629.3,0.46234664]
[1727746874560,3.80271,2629.7,2629.3,0.46234664]
[1727746874745,3.80271,2629.7,2629.5,0.00375604]
[1727746875056,3.80271,2629.7,2629.6,0.00375604]
[1727746875961,3.80259,2629.8,2629.6,0.81685604]
[1727746876209,3.80259,2629.8,2629.7,0.00375604]
[1727746881207,0.7906,2630.0,2629.7,0.00375604]
[1727746881431,3.80232,2630.0,2629.8,0.82985604]
[1727746882088,3.80242,2629.9,2629.8,0.00375604]
[1727746882285,4.58062,2629.9,2629.8,0.00375604]
[1727746882485,4.58062,2629.9,2629.4,0.00375604]
[1727746882486,5.341094,2629.9,2629.4,0.00375604]
[1727746882685,3.803,2629.5,2629.4,0.00375604]
[1727746886545,3.80286,2629.6,2629.4,0.00375604]
[1727746887089,3.80293,2629.6,2629.4,0.00375604]
[1727746887623,7.6059,2629.6,2629.4,0.00375604]
[1727746887990,3.803,2629.5,2629.4,0.00375604]
[1727746888937,3.80293,2629.6,2629.4,0.00375604]
[1727746889239,3.80264,2629.8,2629.6,0.00375604]
[1727746889646,3.80271,2629.7,2629.6,0.00375604]
[1727746890300,3.80264,2629.8,2629.6,0.00375604]
[1727746890497,7.60529,2629.8,2629.6,0.00375604]
[1727746891426,3.80271,2629.7,2629.6,0.00375604]
[1727746892218,3.80258,2629.8,2629.6,0.81465604]
[1727746892843,3.80258,2629.8,2629.7,0.00375604]
[1727746897347,3.80285,2629.6,2629.5,0.00375604]
[1727746898563,4.56825,2629.6,2629.5,0.00375604]
[1727746898768,3.80308,2629.5,2629.2,0.00375604]
[1727746899322,3.80308,2629.5,2629.3,0.00375604]
[1727746899535,3.80314,2629.4,2629.3,0.00375604]
[1727746900223,4.56825,2629.6,2629.3,0.00375604]
[1727746900419,3.803,2629.5,2629.3,0.00375604]
[1727746903924,4.56825,2629.6,2629.3,0.00375604]
[1727746904672,8.37124,2629.6,2629.3,0.00375604]
[1727746905267,4.56825,2629.6,2629.3,0.00375604]
[1727746905672,8.3712,2629.6,2629.3,0.00375604]
[1727746908141,4.56825,2629.6,2629.3,0.00375604]
[1727746910464,8.37123,2629.6,2629.3,0.00375604]
[1727746910667,0.7654,2629.6,2629.3,0.00375604]
[1727746910873,1.62837606,2630.0,2629.0,3.0]
[1727746910874,3.80345,2629.2,2629.0,0.00375604]
[1727746911046,3.80401,2628.8,2628.7,36.19576]
[1727746914483,3.80401,2628.8,2628.7,36.19951604]
[1727746915541,3.80401,2628.8,2628.7,36.19576]
[1727746916383,5.346198,2628.8,2628.7,36.19576]
[1727746922196,4.58541,2628.8,2628.7,36.19576]
[1727746923656,3.80401,2628.8,2628.7,36.19576]
[1727746923857,3.80401,2628.8,2628.7,36.19951604]
[1727746927007,3.80401,2628.8,2628.7,37.00591604]
[1727746927518,3.80401,2628.8,2628.7,36.19951604]
[1727746928690,4.55501,2628.8,2628.7,36.19951604]
[1727746936629,3.80401,2628.8,2628.7,36.19951604]
[1727746937428,3.80401,2628.8,2628.7,36.99321604]
[1727746937835,3.80401,2628.8,2628.7,40.58290572]
[1727746938033,3.80401,2628.8,2628.7,40.57914968]
[1727746938330,3.80401,2628.8,2628.7,40.58290572]
[1727746944139,3.80387,2628.9,2628.7,40.58290572]
[1727746944351,8.1217,2629.5,2628.8,0.00375604]
[1727746944635,3.80387,2628.9,2628.8,0.00375604]
[1727746944795,3.80387,2628.9,2628.8,3.81683873]
[1727746945400,3.8038,2629.0,2628.8,3.81683873]
[1727746946435,3.80372,2629.0,2628.8,3.81683873]
[1727746947827,3.80371,2629.1,2628.8,3.81683873]
[1727746948031,7.60742,2629.1,2628.9,3.81308269]
[1727746948233,7.60742,2629.1,2629.0,0.00375604]
[1727746948446,3.80371,2629.1,2629.0,0.00375604]
[1727746952042,4.57691,2629.1,2629.0,0.00375604]
[1727746952358,3.80385,2629.0,2628.8,0.00375604]
[1727746952558,3.80385,2629.0,2628.8,3.70307764]
[1727746954061,3.80371,2629.1,2628.8,3.70307764]
[1727746954220,7.60738,2629.1,2628.8,3.70307764]
[1727746954424,3.80377,2629.0,2628.8,3.70307764]
[1727746954963,3.80387,2628.9,2628.8,3.70307764]
[1727746955638,3.80382,2629.0,2628.8,3.70307764]
[1727746955947,3.80382,2629.0,2628.8,0.00375604]
[1727746956448,7.60706,2629.2,2628.8,0.00375604]
[1727746956680,3.80353,2629.2,2629.1,0.00375604]
[1727746957391,3.80353,2629.2,2628.9,0.00375604]
[1727746957591,3.80353,2629.2,2629.1,0.00375604]
[1727746958292,3.80372,2629.0,2628.9,0.00375604]
[1727746958463,3.80352,2629.2,2628.9,0.00375604]
[1727746959797,3.80358,2629.1,2628.9,0.00375604]
[1727746961496,3.80372,2629.0,2628.9,0.00375604]
[1727746961797,3.80358,2629.1,2628.9,0.00375604]
[1727746961798,7.60726,2629.1,2628.9,0.00375604]
[1727746962094,3.80358,2629.1,2628.9,0.00375604]
[1727746963868,6.20048794,2629.6,2628.9,0.00375604]
[1727746964084,3.80366,2629.1,2628.9,0.00375604]
[1727746969485,0.7679,2629.2,2628.9,0.00375604]
[1727746969706,4.57134,2629.2,2628.9,0.00375604]
[1727746969864,3.80365,2629.1,2628.9,0.00375604]
[1727746972214,0.7679,2629.2,2628.9,0.00375604]
[1727746973305,3.80342,2629.3,2628.9,0.00375604]
[1727746974383,3.80339,2629.3,2628.9,0.00375604]
[1727746974779,3.80339,2629.3,2629.0,0.7944]
[1727746975006,3.80339,2629.3,2629.2,0.00375604]
[1727746976004,3.80339,2629.3,2629.1,0.00375604]
[1727746976414,3.80343,2629.2,2629.1,0.00375604]
[1727746976772,3.80343,2629.2,2628.9,0.00375604]
[1727746977075,3.80359,2629.1,2628.9,0.00375604]
[1727746977883,3.80339,2629.3,2628.9,0.00375604]
[1727746978273,3.80346,2629.2,2628.9,0.00375604]
[1727746980396,3.8033,2629.3,2628.9,0.00375604]
[1727746980596,3.80308,2629.5,2629.0,0.8048]
[1727746980797,3.80308,2629.5,2629.4,0.00375604]
[1727746981389,7.60562,2629.7,2629.2,0.00375604]
[1727746981597,7.60562,2629.7,2629.0,0.8048]
[1727746981598,7.60562,2629.7,2629.3,0.00375604]
[1727746982013,3.803,2629.5,2629.3,0.00375604]
[1727746985387,7.60565,2629.7,2629.3,0.00375604]
[1727746985613,7.60565,2629.7,2629.3,0.78945604]
[1727746985813,7.60565,2629.7,2629.6,0.00375604]
[1727746985814,3.80281,2629.7,2629.6,0.00375604]
[1727746986004,3.80266,2629.8,2629.6,0.00375604]
[1727746986425,3.80253,2629.9,2629.7,0.787]
[1727746986597,3.80253,2629.9,2629.8,0.00375604]
[1727746987319,7.60505,2629.9,2629.7,0.787]
[1727746987529,7.60505,2629.9,2629.8,0.00375604]
[1727746988228,3.80252,2629.9,2629.8,0.00375604]
[1727746989813,3.80252,2629.9,2629.7,0.79075604]
[1727746990015,3.80252,2629.9,2629.8,0.00375604]
[1727746990213,3.80228,2630.0,2629.8,0.00375604]
[1727746990524,3.80242,2629.9,2629.8,0.24580244]
[1727746990838,3.80242,2629.9,2629.8,0.00375604]
[1727746995230,3.80242,2629.9,2628.8,3.80396]
[1727746995231,3.80271,2629.7,2629.6,0.00375604]
[1727746995402,3.80314,2629.4,2629.3,0.00375604]
[1727746995620,3.80314,2629.4,2629.0,0.00375604]
[1727746995621,3.80355,2629.2,2629.0,0.00375604]
[1727746996137,3.80358,2629.1,2629.0,0.00375604]
[1727746996508,3.80355,2629.2,2628.7,0.00375604]
[1727746996705,3.80355,2629.2,2628.8,0.00375604]
[1727746997047,3.80308,2629.5,2629.0,1.63346398]
[1727746997208,3.80308,2629.5,2629.2,0.00375604]
[1727746997542,3.80308,2629.5,2629.3,0.00375604]
[1727747000052,4.60007,2629.7,2629.3,0.00375604]
[1727747000675,3.80289,2629.6,2629.0,3.80371]
[1727747001367,3.80277,2629.7,2629.3,0.00375604]
[1727747001568,3.80257,2629.8,2629.5,0.00375604]
[1727747002005,3.80257,2629.8,2629.6,0.00375604]
[1727747002212,3.80257,2629.8,2629.7,0.00375604]
[1727747002360,5.063344,2629.9,2629.5,0.00375604]
[1727747002565,4.60304,2629.9,2629.6,0.00375604]
[1727747002766,8.40556,2629.9,2629.7,0.00375604]
[1727747003062,8.40556,2629.9,2629.6,0.00375604]
[1727747003261,8.40556,2629.9,2629.7,0.00375604]
[1727747003506,3.80257,2629.8,2629.7,0.00375604]
[1727747003661,3.80257,2629.8,2629.5,0.7986]
[1727747003862,3.80244,2629.9,2629.5,0.7986]
[1727747004099,3.80244,2629.9,2629.5,1.26253604]
[1727747004465,7.60497,2629.9,2629.8,0.00375604]
[1727747004691,3.80244,2629.9,2629.8,0.00375604]
[1727747005427,3.80229,2630.0,2629.8,0.00375604]
[1727747005602,3.80229,2630.0,2629.6,0.00375604]
[1727747005765,3.80242,2629.9,2629.7,0.00375604]
[1727747006082,3.80229,2630.0,2629.7,0.00375604]
[1727747008215,3.80229,2630.0,2629.8,0.00375604]
[1727747008381,3.80229,2630.0,2629.6,0.00375604]
[1727747008711,3.80229,2630.0,2629.7,0.00375604]
[1727747008905,0.7818,2630.1,2629.8,0.00375604]
[1727747009115,3.80207,2630.2,2629.9,0.8154]
[1727747009487,3.80228,2630.0,2629.9,0.8154]
[1727747009674,3.80228,2630.0,2629.8,0.00375604]
[1727747010668,3.80242,2629.9,2629.8,0.00375604]
[1727747012591,0.8134,2630.0,2629.8,0.00375604]
[1727747012961,3.80242,2629.9,2629.8,0.00375604]
[1727747013111,6.27393094,2629.9,2629.8,0.00375604]
[1727747013313,6.27393094,2629.9,2629.2,0.8158]
[1727747013314,3.803,2629.5,2629.4,0.00375604]
[1727747013484,3.803,2629.5,2629.2,0.81955604]
[1727747013684,3.803,2629.5,2629.4,0.00375604]
[1727747015403,4.639584,2629.5,2629.4,0.00375604]
[1727747015709,3.80329,2629.3,2629.2,0.00375604]
[1727747016276,6.22989794,2629.3,2629.2,0.00375604]
[1727747016506,3.80387,2628.9,2628.8,0.00375604]
[1727747017082,3.80417,2628.7,2628.6,0.00375604]
[1727747018386,3.80387,2628.9,2628.6,0.00375604]
[1727747018689,3.80375,2629.0,2628.6,0.00375604]
[1727747019619,3.80391,2628.9,2628.6,0.00375604]
[1727747024526,7.60788,2628.9,2628.6,0.00375604]
[1727747025051,3.80355,2629.2,2628.7,0.7674]
[1727747025202,3.80355,2629.2,2628.9,0.00375604]
[1727747025853,3.80355,2629.2,2628.8,0.00375604]
[1727747026305,3.80377,2629.0,2628.8,0.00375604]
[1727747030448,3.80349,2629.2,2628.8,0.00375604]
[1727747030449,3.80352,2629.2,2628.9,0.7761]
[1727747030650,3.80352,2629.2,2629.0,0.00375604]
[1727747031238,0.8332,2630.2,2629.1,0.7508]
[1727747031554,0.8332,2630.2,2629.6,0.7508]
[1727747031555,3.80268,2629.8,2629.6,0.7508]
[1727747031783,3.80268,2629.8,2629.7,0.00375604]
[1727747033581,7.60467,2630.0,2629.7,0.00375604]
[1727747033889,3.80229,2630.0,2629.9,0.00375604]
[1727747035778,3.80179,2630.4,2629.9,0.00375604]
[1727747035955,3.80179,2630.4,2630.0,2.46280794]
[1727747036282,3.80179,2630.4,2630.1,0.00375604]
[1727747036487,4.59869,2630.5,2630.1,0.00375604]
[1727747037170,3.80172,2630.4,2630.2,0.00375604]
[1727747038746,3.80149,2630.6,2630.2,0.00375604]
[1727747038990,3.80149,2630.6,2630.3,0.00375604]
[1727747039171,3.80114,2630.8,2630.3,0.00375604]
[1727747039366,3.80127,2630.7,2630.3,0.00375604]
[1727747039561,3.80114,2630.8,2630.4,0.7793]
[1727747039758,7.60236,2630.8,2630.5,0.00375604]
[1727747040149,3.80131,2630.7,2630.5,0.00375604]
[1727747040654,7.60236,2630.8,2630.5,0.00375604]
[1727747041096,3.80126,2630.7,2630.5,0.00375604]
[1727747041386,3.80114,2630.8,2630.5,0.00375604]
[1727747041582,3.80114,2630.8,2630.7,0.00375604]
[1727747042359,3.80136,2630.7,2630.5,0.00375604]
[1727747042547,3.80136,2630.7,2630.6,0.00375604]
[1727747043668,3.80136,2630.7,2630.4,0.78305604]
[1727747044579,3.80136,2630.7,2630.6,0.00375604]
[1727747047695,3.80126,2630.7,2630.6,0.00375604]
[1727747056440,3.80192,2630.3,2630.1,0.00375604]
[1727747056641,7.60384,2630.3,2630.1,0.00375604]
[1727747056875,3.80192,2630.3,2630.1,0.00375604]
[1727747057021,7.60385,2630.3,2630.1,0.00375604]
[1727747057343,3.80192,2630.3,2630.1,0.00375604]
[1727747057553,3.80199,2630.2,2630.1,0.00375604]
[1727747057843,3.80228,2630.0,2629.9,0.00375604]
[1727747058047,6.62347659,2630.2,2629.9,0.00375604]
[1727747058048,7.60408,2630.2,2629.9,0.00375604]
[1727747058296,3.80199,2630.2,2629.9,0.00375604]
[1727747058589,7.60407,2630.2,2629.9,0.00375604]
[1727747058999,3.80222,2630.1,2629.9,0.00375604]
[1727747059355,3.80199,2630.2,2629.9,0.00375604]
[1727747059553,7.60409,2630.2,2629.9,0.00375604]
[1727747060465,3.80199,2630.2,2629.9,0.00375604]
[1727747060667,7.60409,2630.2,2629.9,0.00375604]
[1727747060973,3.80199,2630.2,2629.9,0.00375604]
[1727747061175,0.8043,2630.3,2629.9,0.00375604]
[1727747061352,3.80188,2630.3,2630.0,0.793]
[1727747061549,3.80209,2630.2,2630.0,0.793]
[1727747062894,0.7957,2630.8,2630.0,0.793]
[1727747063096,0.7957,2630.8,2630.4,0.8296]
[1727747063292,4.62285,2631.0,2630.5,0.46689104]
[1727747063450,3.80099,2630.9,2630.5,0.00375604]
[1727747063652,3.80134,2630.7,2630.5,0.00375604]
[1727747063853,3.80124,2630.8,2630.5,0.00375604]
[1727747064064,3.80128,2630.7,2630.5,0.00375604]
[1727747064498,3.80124,2630.8,2630.5,0.00375604]
[1727747065058,3.80129,2630.7,2630.5,0.00375604]
[1727747065258,7.60245,2630.8,2630.5,0.00375604]
[1727747065483,4.62291,2630.8,2630.5,0.00375604]
[1727747069606,0.8217,2630.8,2630.5,0.00375604]
[1727747070263,4.62283,2630.8,2630.5,0.00375604]
[1727747073203,0.8217,2630.8,2630.5,0.00375604]
[1727747074669,4.62283,2630.8,2630.5,0.00375604]
[1727747076308,0.8217,2630.8,2630.5,0.00375604]
[1727747076874,3.80101,2630.9,2630.5,0.00375604]
[1727747083613,4.56441,2631.0,2630.5,0.00375604]
[1727747084117,3.80098,2630.9,2630.5,0.00375604]
[1727747086110,4.80022913,2630.9,2630.5,0.00277662]
[1727747086910,3.80113,2630.8,2630.5,0.00277662]
[1727747087112,7.60234,2630.8,2630.5,0.00277662]
[1727747087427,3.80135,2630.7,2630.5,0.00277662]
[1727747087887,3.80113,2630.8,2630.5,0.00277662]
[1727747088083,0.64274804,2630.7,2630.5,0.00277662]
[1727747088489,4.44404804,2630.7,2630.5,0.00277662]
[1727747089033,0.64274804,2630.7,2630.5,0.00277662]
[1727747089325,3.80134,2630.7,2630.5,0.00277662]
[1727747089924,3.80113,2630.8,2630.5,0.00277662]
[1727747090394,7.60236,2630.8,2630.5,0.00277662]
[1727747090592,3.80113,2630.8,2630.4,0.8296]
[1727747091729,3.80133,2630.7,2630.4,0.8296]
[1727747092136,7.60234,2630.8,2630.4,0.8296]
[1727747092428,0.86015891,2630.7,2630.4,0.8296]
[1727747092591,3.80113,2630.8,2630.5,0.0024]
[1727747096297,3.80127,2630.7,2630.5,0.0024]
[1727747097429,3.80113,2630.8,2630.5,0.0024]
[1727747097912,3.80128,2630.7,2630.5,0.0024]
[1727747098533,3.80113,2630.8,2630.5,0.0024]
[1727747098738,0.380113,2630.7,2630.5,0.0024]
[1727747101024,0.380113,2630.7,2630.4,0.8296]
[1727747101025,3.8009,2631.0,2630.6,0.0024]
[1727747101347,3.8009,2631.0,2630.4,3.80166]
[1727747101348,3.80086,2631.0,2630.8,0.0024]
[1727747101546,4.181066,2630.9,2630.8,0.0024]
[1727747101856,4.181066,2630.9,2630.5,0.7788]
[1727747101857,4.181066,2630.9,2630.6,0.0024]
[1727747102151,3.80117,2630.8,2630.6,0.0024]
[1727747102357,3.80126,2630.7,2630.6,0.0024]
[1727747102644,4.5994926,2630.7,2630.6,0.0024]
[1727747103345,3.80155,2630.5,2630.4,0.0024]
[1727747103492,3.80184,2630.3,2630.2,0.0024]
[1727747103697,3.80184,2630.3,2630.0,0.7869]
[1727747103992,3.80184,2630.3,2630.1,0.0024]
[1727747104568,3.80184,2630.3,2630.0,0.7869]
[1727747104771,7.6038,2630.3,2630.0,0.7869]
[1727747105078,2.08707954,2630.5,2629.8,0.7835]
[1727747105079,3.80242,2629.9,2629.8,0.7835]
[1727747105589,3.80242,2629.9,2629.7,0.0024]
[1727747105590,5.42952128,2629.9,2629.7,0.0024]
[1727747105892,3.80257,2629.8,2629.7,0.0024]
[1727747106093,3.80257,2629.8,2629.6,0.7835]
[1727747107901,3.80285,2629.6,2629.5,0.0024]
[1727747108111,3.80349,2629.2,2629.0,0.0024]
[1727747108266,5.43059128,2629.2,2629.0,0.0024]
[1727747109802,3.80349,2629.2,2629.0,0.0024]
[1727747110758,11.13674306,2629.4,2629.0,0.0024]
[1727747110963,3.80343,2629.2,2629.1,0.0024]
[1727747111201,3.80343,2629.2,2628.9,0.7826]
[1727747111202,3.80343,2629.2,2628.9,0.785]
[1727747111398,3.80343,2629.2,2629.1,0.0024]
[1727747111807,3.8032,2629.4,2629.1,0.0024]
[1727747111959,3.8032,2629.4,2629.3,0.0024]
[1727747112162,1.11364231,2629.4,2629.1,0.0024]
[1727747112480,3.80292,2629.6,2629.1,0.0024]
[1727747112805,3.80292,2629.6,2629.2,0.8302]
[1727747113007,3.80292,2629.6,2629.3,0.0024]
[1727747113323,3.80292,2629.6,2629.5,0.0024]
[1727747114095,0.7686,2630.0,2629.5,0.0024]
[1727747114265,0.457075,2629.9,2629.5,0.0024]
[1727747114464,0.457075,2629.9,2629.6,0.0024]
[1727747114914,0.457075,2629.9,2629.2,0.8302]
[1727747114915,0.457075,2629.9,2629.7,0.0024]
[1727747116123,0.457075,2629.9,2629.8,0.0024]
[1727747116423,0.7686,2630.0,2629.8,0.0024]
[1727747120225,0.814,2630.3,2629.8,0.0024]
[1727747121530,0.814,2630.3,2629.7,0.0024]
[1727747121695,0.814,2630.3,2629.8,0.0024]
[1727747122019,0.43443031,2630.2,2629.7,0.0024]
[1727747122239,0.43443031,2630.2,2630.0,0.0024]
[1727747123729,0.43443031,2630.2,2629.6,0.828]
[1727747123899,0.43443031,2630.2,2630.0,0.0024]
[1727747125139,0.43443031,2630.2,2629.7,0.0024]
[1727747125338,0.43443031,2630.2,2629.9,0.0024]
[1727747125647,0.43443031,2630.2,2629.7,0.0024]
[1727747127003,0.42484303,2630.1,2629.7,0.0024]
[1727747127404,0.42484303,2630.1,2629.6,0.8256]
[1727747127635,0.42484303,2630.1,2629.6,0.828]
[1727747130526,0.42484303,2630.1,2629.7,0.0024]
[1727747131128,4.31440306,2629.8,2629.7,0.0024]
[1727747131471,0.7841,2629.7,2629.1,0.0024]
[1727747131651,1.62956506,2629.2,2628.9,0.816]
[1727747131837,1.62956506,2629.2,2628.9,0.81152911]
[1727747133224,1.62956506,2629.2,2629.1,0.0024]
[1727747133423,1.62956506,2629.2,2628.9,0.81152911]
[1727747133761,3.53022547,2629.4,2628.9,0.81152911]
[1727747133961,0.35302255,2629.3,2628.9,0.81152911]
[1727747139135,3.80346,2629.2,2628.9,0.80912911]
[1727747140088,3.80372,2629.0,2628.9,0.80912911]
[1727747140949,3.80372,2629.0,2628.7,0.8228]
[1727747141175,3.80401,2628.8,2628.7,0.8228]
[1727747141845,0.380372,2628.9,2628.7,0.8228]
[1727747142184,3.80372,2629.0,2628.7,0.8228]
[1727747142492,3.80387,2628.9,2628.7,0.8228]
[1727747142694,3.80387,2628.9,2628.7,0.8252]
[1727747143135,3.80372,2629.0,2628.8,0.0024]
[1727747143332,3.80387,2628.9,2628.8,0.0024]
[1727747150923,3.80445,2628.5,2628.4,0.8321]
[1727747151199,3.80459,2628.4,2628.3,0.0024]
[1727747154826,3.80488,2628.2,2628.1,0.8345]
[1727747155018,3.80488,2628.2,2628.1,0.8321]
[1727747155324,3.80503,2628.1,2627.9,0.7543]
[1727747156623,7.61015,2628.1,2627.9,0.7543]
[1727747157186,3.80517,2628.0,2627.9,0.7543]
[1727747157583,3.80503,2628.1,2627.9,0.0024]
[1727747157828,3.80503,2628.1,2627.6,0.7758]
[1727747157829,3.80546,2627.8,2627.7,0.0024]
[1727747158614,3.80531,2627.9,2627.7,0.0024]
[1727747158816,3.80517,2628.0,2627.7,0.0024]
[1727747159589,3.80494,2628.2,2627.7,0.0024]
[1727747159791,3.80503,2628.1,2627.7,0.0024]
[1727747160217,3.8051,2628.1,2627.7,0.0024]
[1727747160600,1.174545,2628.4,2627.7,3.80798]
[1727747160601,3.80483,2628.3,2627.7,3.80798]
[1727747160801,3.8052,2628.0,2627.6,0.7758]
[1727747161025,3.8052,2628.0,2627.9,0.0024]
[1727747161533,3.80505,2628.1,2627.9,0.0024]
[1727747162200,3.80517,2628.0,2627.9,0.0024]
[1727747165411,3.80497,2628.2,2627.9,0.7852]
[1727747165614,3.80497,2628.2,2628.1,0.0024]
[1727747167097,7.35,2628.7,2628.2,0.7872]
[1727747167322,3.80454,2628.5,2628.4,0.0024]
[1727747167521,3.8043,2628.6,2628.4,0.0024]
[1727747167753,3.80425,2628.7,2628.4,0.0024]
[1727747167964,3.80445,2628.5,2628.4,0.0024]
[1727747169016,3.80402,2628.8,2628.4,0.0024]
[1727747169248,3.8043,2628.6,2628.5,0.8015]
[1727747170129,3.80416,2628.7,2628.5,0.8015]
[1727747170345,3.8043,2628.6,2628.5,0.8015]
[1727747171623,3.8043,2628.6,2628.4,0.0024]
[1727747172023,3.80445,2628.5,2628.4,0.0024]
[1727747172223,7.35,2629.2,2628.6,0.55]
[1727747172224,3.80361,2629.1,2628.6,0.55]
[1727747172454,3.80361,2629.1,2628.9,0.7964]
[1727747172862,3.80361,2629.1,2629.0,0.0024]
[1727747177439,4.564314,2629.1,2629.0,0.0024]
[1727747177642,3.80402,2628.8,2628.6,0.8069]
[1727747177963,3.80402,2628.8,2628.7,0.0024]
[1727747184950,3.80402,2628.8,2628.6,0.0024]
[1727747186349,3.80388,2628.9,2628.6,0.0024]
[1727747186549,3.80411,2628.8,2628.6,0.0024]
[1727747186786,3.80411,2628.8,2628.7,0.0024]
[1727747187088,2.61532562,2628.8,2628.7,0.0024]
[1727747187300,13.14072427,2638.6,2628.7,0.0024]
[1727747187301,3.80298,2629.6,2629.1,0.55]
[1727747187586,3.80237,2630.0,2629.5,0.0024]
[1727747187795,3.80237,2630.0,2629.9,0.0024]
[1727747189146,8.060904,2630.1,2629.9,0.0024]
[1727747189378,4.258664,2630.1,2629.9,0.0024]
[1727747189575,8.060874,2630.1,2629.9,0.0024]
[1727747189895,3.80228,2630.0,2629.9,0.0024]
[1727747190852,8.060934,2630.1,2629.9,0.0024]
[1727747191080,3.80228,2630.0,2629.9,0.0024]
[1727747191589,3.80214,2630.1,2629.9,0.0024]
[1727747191803,3.80193,2630.3,2629.9,0.0024]
[1727747192091,3.80193,2630.3,2630.0,0.7513]
[1727747192393,3.80193,2630.3,2630.2,0.0024]
[1727747194091,3.0,2630.9,2630.2,0.0024]
[1727747194092,3.80054,2631.2,2630.6,0.55]
[1727747194290,0.87110918,2631.5,2630.6,0.55]
[1727747194291,3.80031,2631.4,2630.8,0.55]
[1727747194450,3.80031,2631.4,2631.1,0.0024]
[1727747194654,3.80031,2631.4,2631.3,0.0024]
[1727747195267,3.79999,2631.6,2631.2,0.7513]
[1727747195594,3.79989,2631.7,2631.5,0.0024]
[1727747195774,4.559839,2631.7,2631.6,0.0024]
[1727747196879,4.559839,2631.7,2631.4,0.0024]
[1727747197096,4.559839,2631.7,2631.2,0.7513]
[1727747197097,3.8,2631.6,2631.2,0.7513]
[1727747197500,3.80017,2631.5,2631.2,0.7513]
[1727747198390,3.80026,2631.4,2631.2,0.7513]
[1727747199403,4.6361709,2631.5,2631.2,0.7513]
[1727747199599,8.4363909,2631.5,2631.2,0.7513]
[1727747200386,3.80026,2631.4,2631.2,0.7513]
[1727747200593,4.6361709,2631.5,2631.2,0.7513]
[1727747200594,8.4363909,2631.5,2631.2,0.7513]
[1727747200961,3.80027,2631.4,2631.2,0.7513]
[1727747201583,4.6361709,2631.5,2631.2,0.7513]
[1727747202569,3.80002,2631.6,2631.2,0.7513]
[1727747204594,3.79988,2631.7,2631.2,0.7513]
[1727747205307,3.80008,2631.6,2631.2,0.7513]
[1727747205803,3.79988,2631.7,2631.2,0.7513]
[1727747206005,7.59981,2631.7,2631.2,0.7513]
[1727747206321,3.79999,2631.6,2631.2,0.7513]
[1727747207086,3.80014,2631.5,2631.2,0.7513]
[1727747213782,3.79988,2631.7,2631.2,4.55184]
[1727747214324,0.39729523,2631.6,2631.2,0.7513]
[1727747215492,4.19728523,2631.6,2631.2,0.7513]
[1727747215805,3.80012,2631.5,2631.2,0.7513]
[1727747217219,0.39729523,2631.6,2631.2,0.7513]
[1727747217383,0.39729523,2631.6,2631.2,1.206495]
[1727747218021,4.19730523,2631.6,2631.2,1.206495]
[1727747218989,0.39729523,2631.6,2631.3,0.8107]
[1727747219187,4.19729523,2631.6,2631.3,0.8107]
[1727747220306,3.80012,2631.5,2631.3,0.8107]
[1727747220844,7.60032,2631.5,2631.3,0.8107]
[1727747221000,7.60037,2631.5,2631.3,0.8107]
[1727747221206,3.80012,2631.5,2631.3,0.8107]
[1727747222310,0.39729523,2631.6,2631.3,0.8107]
[1727747223232,4.19727523,2631.6,2631.3,0.8107]
[1727747223617,3.80012,2631.5,2631.3,0.8107]
[1727747224018,7.60033,2631.5,2631.3,0.8107]
[1727747226250,3.80025,2631.4,2631.3,0.8107]
[1727747226610,3.80012,2631.5,2631.0,1.372]
[1727747226851,3.80012,2631.5,2631.4,0.0024]
[1727747229837,3.8004,2631.3,2631.2,0.0024]
[1727747230147,3.80091,2631.0,2630.8,0.801]
[1727747230352,3.80062,2631.2,2630.9,0.0024]
[1727747230514,3.80062,2631.2,2631.1,0.0024]
[1727747237128,4.1977027,2631.3,2631.2,0.8198]
[1727747237343,0.3972927,2631.3,2631.2,0.8222]
[1727747237970,4.1976927,2631.3,2631.2,0.8222]
[1727747240239,4.1976927,2631.3,2631.2,0.0024]
[1727747244173,5.0192927,2631.3,2631.2,0.0024]
[1727747244483,5.0192927,2631.3,2630.9,0.7827]
[1727747244484,3.80069,2631.1,2631.0,0.0024]
[1727747244778,3.80069,2631.1,2630.7,0.8057]
[1727747244779,3.80097,2631.0,2630.7,0.8057]
[1727747245589,3.80083,2631.0,2630.7,0.8057]
[1727747246113,3.80069,2631.1,2630.7,0.8057]
[1727747246114,3.80098,2630.9,2630.7,0.8057]
[1727747246382,3.80143,2630.6,2630.3,0.8075]
[1727747247692,3.80143,2630.6,2629.9,0.8075]
[1727747247980,4.30582547,2630.9,2630.0,0.07604071]
[1727747247981,3.80119,2630.8,2630.0,0.07604071]
[1727747248205,7.60187,2631.0,2630.8,0.0024]
[1727747248479,9.174617,2631.0,2630.8,0.0024]
[1727747248637,3.80091,2631.0,2630.8,0.0024]
[1727747248838,7.60184,2631.0,2630.8,0.0024]
[1727747249444,3.80098,2630.9,2630.8,0.0024]
[1727747249678,3.80091,2631.0,2630.8,0.0024]
[1727747249891,3.80098,2630.9,2630.8,0.0024]
[1727747250798,7.60184,2631.0,2630.8,0.0024]
[1727747251011,3.80098,2630.9,2630.8,0.0024]
[1727747251307,3.80091,2631.0,2630.8,0.0024]